Workbook

Sheet Sheet1
A1: 赫章县公安局2025年面向社会公开招聘 警务辅助人员总成绩公示及拟进入体检人员名单
A2: 序号 | B2: 职位名称 | C2: 招考单位 | D2: 职位代码 | E2: 姓名 | F2: 准考证号 | G2: 笔试成绩 | H2: 笔试成绩 折算为百分制 | I2: 笔试成绩 （40%） | J2: 面试分数 | K2: 面试成绩 （60%） | L2: 总成绩 | M2: 是否进入 体检 | N2: 备注
A3: 1 | B3: 勤务岗位01 | C3: 赫章县公安局 | D3: 01 | E3: =VLOOKUP(F3,'[1]Worksheet (2)'!$A$1:$C$1340,2,FALSE) -> 王杰 | F3: 2025010226 | G3: 114.30 | H3: =ROUND(G3/1.5,2) -> 76.20 | I3: =ROUND(H3*0.4,2) -> 30.48 | J3: 80.57 | K3: =ROUND(J3*0.6,2) -> 48.34 | L3: =ROUND(I3+K3,2) -> 78.82 | M3: 是
A4: 2 | B4: 勤务岗位01 | C4: 赫章县公安局 | D4: 01 | E4: =VLOOKUP(F4,'[1]Worksheet (2)'!$A$1:$C$1340,2,FALSE) -> 曹朗 | F4: 2025010106 | G4: 114.30 | H4: 76.20 | I4: 30.48 | J4: 80.20 | K4: 48.12 | L4: 78.60 | M4: 是
A5: 3 | B5: 勤务岗位01 | C5: 赫章县公安局 | D5: 01 | E5: =VLOOKUP(F5,'[1]Worksheet (2)'!$A$1:$C$1340,2,FALSE) -> 饶海 | F5: 2025010218 | G5: 109.78 | H5: 73.19 | I5: 29.28 | J5: 80.97 | K5: 48.58 | L5: 77.86 | M5: 是
A6: 4 | B6: 勤务岗位01 | C6: 赫章县公安局 | D6: 01 | E6: =VLOOKUP(F6,'[1]Worksheet (2)'!$A$1:$C$1340,2,FALSE) -> 李威 | F6: 2025010204 | G6: 101.14 | H6: 67.43 | I6: 26.97 | J6: 82.83 | K6: 49.70 | L6: 76.67 | M6: 是
A7: 5 | B7: 勤务岗位01 | C7: 赫章县公安局 | D7: 01 | E7: =VLOOKUP(F7,'[1]Worksheet (2)'!$A$1:$C$1340,2,FALSE) -> 颜佳伟 | F7: 2025010306 | G7: 99.80 | H7: 66.53 | I7: 26.61 | J7: 81.81 | K7: 49.09 | L7: 75.70 | M7: 是
A8: 6 | B8: 勤务岗位01 | C8: 赫章县公安局 | D8: 01 | E8: =VLOOKUP(F8,'[1]Worksheet (2)'!$A$1:$C$1340,2,FALSE) -> 杜廷过 | F8: 2025010221 | G8: 115.85 | H8: 77.23 | I8: 30.89 | J8: 73.33 | K8: 44.00 | L8: 74.89 | M8: 是
A9: 7 | B9: 勤务岗位01 | C9: 赫章县公安局 | D9: 01 | E9: =VLOOKUP(F9,'[1]Worksheet (2)'!$A$1:$C$1340,2,FALSE) -> 喻永燊 | F9: 2025010210 | G9: 98.88 | H9: 65.92 | I9: 26.37 | J9: 80.87 | K9: 48.52 | L9: 74.89 | M9: 是
A10: 8 | B10: 勤务岗位01 | C10: 赫章县公安局 | D10: 01 | E10: =VLOOKUP(F10,'[1]Worksheet (2)'!$A$1:$C$1340,2,FALSE) -> 张科 | F10: 2025010219 | G10: 101.06 | H10: 67.37 | I10: 26.95 | J10: 78.67 | K10: 47.20 | L10: 74.15 | M10: 是
A11: 9 | B11: 勤务岗位01 | C11: 赫章县公安局 | D11: 01 | E11: =VLOOKUP(F11,'[1]Worksheet (2)'!$A$1:$C$1340,2,FALSE) -> 汤雄 | F11: 2025010214 | G11: 110.28 | H11: 73.52 | I11: 29.41 | J11: 74.23 | K11: 44.54 | L11: 73.95 | M11: 是
A12: 10 | B12: 勤务岗位01 | C12: 赫章县公安局 | D12: 01 | E12: =VLOOKUP(F12,'[1]Worksheet (2)'!$A$1:$C$1340,2,FALSE) -> 马贵雄 | F12: 2025010314 | G12: 110.07 | H12: 73.38 | I12: 29.35 | J12: 73.36 | K12: 44.02 | L12: 73.37 | M12: 是
A13: 11 | B13: 勤务岗位01 | C13: 赫章县公安局 | D13: 01 | E13: =VLOOKUP(F13,'[1]Worksheet (2)'!$A$1:$C$1340,2,FALSE) -> 郑涛 | F13: 2025010119 | G13: 92.47 | H13: 61.65 | I13: 24.66 | J13: 80.51 | K13: 48.31 | L13: 72.97 | M13: 是
A14: 12 | B14: 勤务岗位01 | C14: 赫章县公安局 | D14: 01 | E14: =VLOOKUP(F14,'[1]Worksheet (2)'!$A$1:$C$1340,2,FALSE) -> 朱涛 | F14: 2025010321 | G14: 107.89 | H14: 71.93 | I14: 28.77 | J14: 73.04 | K14: 43.82 | L14: 72.59 | M14: 是
A15: 13 | B15: 勤务岗位01 | C15: 赫章县公安局 | D15: 01 | E15: =VLOOKUP(F15,'[1]Worksheet (2)'!$A$1:$C$1340,2,FALSE) -> 王林冲 | F15: 2025010312 | G15: 104.87 | H15: 69.91 | I15: 27.96 | J15: 73.50 | K15: 44.10 | L15: 72.06 | M15: 是
A16: 14 | B16: 勤务岗位01 | C16: 赫章县公安局 | D16: 01 | E16: =VLOOKUP(F16,'[1]Worksheet (2)'!$A$1:$C$1340,2,FALSE) -> 管灿 | F16: 2025010115 | G16: 88.03 | H16: 58.69 | I16: 23.48 | J16: 79.63 | K16: 47.78 | L16: 71.26 | M16: 是
A17: 15 | B17: 勤务岗位01 | C17: 赫章县公安局 | D17: 01 | E17: =VLOOKUP(F17,'[1]Worksheet (2)'!$A$1:$C$1340,2,FALSE) -> 王钱参 | F17: 2025010129 | G17: 89.87 | H17: 59.91 | I17: 23.96 | J17: 77.17 | K17: 46.30 | L17: 70.26 | M17: 是
A18: 16 | B18: 勤务岗位01 | C18: 赫章县公安局 | D18: 01 | E18: =VLOOKUP(F18,'[1]Worksheet (2)'!$A$1:$C$1340,2,FALSE) -> 陆季 | F18: 2025010128 | G18: 83.25 | H18: 55.50 | I18: 22.20 | J18: 79.54 | K18: 47.72 | L18: 69.92 | M18: 否
A19: 17 | B19: 勤务岗位01 | C19: 赫章县公安局 | D19: 01 | E19: =VLOOKUP(F19,'[1]Worksheet (2)'!$A$1:$C$1340,2,FALSE) -> 张伦 | F19: 2025010125 | G19: 86.56 | H19: 57.71 | I19: 23.08 | J19: 77.77 | K19: 46.66 | L19: 69.74 | M19: 否
A20: 18 | B20: 勤务岗位01 | C20: 赫章县公安局 | D20: 01 | E20: =VLOOKUP(F20,'[1]Worksheet (2)'!$A$1:$C$1340,2,FALSE) -> 黄家超 | F20: 2025010120 | G20: 89.95 | H20: 59.97 | I20: 23.99 | J20: 74.53 | K20: 44.72 | L20: 68.71 | M20: 否
A21: 19 | B21: 勤务岗位01 | C21: 赫章县公安局 | D21: 01 | E21: =VLOOKUP(F21,'[1]Worksheet (2)'!$A$1:$C$1340,2,FALSE) -> 周礼庆 | F21: 2025010320 | G21: 79.31 | H21: 52.87 | I21: 21.15 | J21: 79.24 | K21: 47.54 | L21: 68.69 | M21: 否
A22: 20 | B22: 勤务岗位01 | C22: 赫章县公安局 | D22: 01 | E22: =VLOOKUP(F22,'[1]Worksheet (2)'!$A$1:$C$1340,2,FALSE) -> 申贵明 | F22: 2025010101 | G22: 98.80 | H22: 65.87 | I22: 26.35 | J22: 69.57 | K22: 41.74 | L22: 68.09 | M22: 否
A23: 21 | B23: 勤务岗位01 | C23: 赫章县公安局 | D23: 01 | E23: =VLOOKUP(F23,'[1]Worksheet (2)'!$A$1:$C$1340,2,FALSE) -> 徐淼燚 | F23: 2025010110 | G23: 91.63 | H23: 61.09 | I23: 24.44 | J23: 71.64 | K23: 42.98 | L23: 67.42 | M23: 否
A24: 22 | B24: 勤务岗位01 | C24: 赫章县公安局 | D24: 01 | E24: =VLOOKUP(F24,'[1]Worksheet (2)'!$A$1:$C$1340,2,FALSE) -> 肖正涵 | F24: 2025010208 | G24: 83.25 | H24: 55.50 | I24: 22.20 | J24: 73.87 | K24: 44.32 | L24: 66.52 | M24: 否
A25: 23 | B25: 勤务岗位01 | C25: 赫章县公安局 | D25: 01 | E25: =VLOOKUP(F25,'[1]Worksheet (2)'!$A$1:$C$1340,2,FALSE) -> 刘宇 | F25: 2025010108 | G25: 88.37 | H25: 58.91 | I25: 23.56 | J25: 71.13 | K25: 42.68 | L25: 66.24 | M25: 否
A26: 24 | B26: 勤务岗位01 | C26: 赫章县公安局 | D26: 01 | E26: =VLOOKUP(F26,'[1]Worksheet (2)'!$A$1:$C$1340,2,FALSE) -> 禹龙 | F26: 2025010311 | G26: 91.42 | H26: 60.95 | I26: 24.38 | J26: 69.43 | K26: 41.66 | L26: 66.04 | M26: 否
A27: 25 | B27: 勤务岗位01 | C27: 赫章县公安局 | D27: 01 | E27: =VLOOKUP(F27,'[1]Worksheet (2)'!$A$1:$C$1340,2,FALSE) -> 李旭 | F27: 2025010102 | G27: 83.67 | H27: 55.78 | I27: 22.31 | J27: 71.54 | K27: 42.92 | L27: 65.23 | M27: 否
A28: 26 | B28: 勤务岗位01 | C28: 赫章县公安局 | D28: 01 | E28: =VLOOKUP(F28,'[1]Worksheet (2)'!$A$1:$C$1340,2,FALSE) -> 付浪航 | F28: 2025010213 | G28: 85.51 | H28: 57.01 | I28: 22.80 | J28: 68.77 | K28: 41.26 | L28: 64.06 | M28: 否
A29: 27 | B29: 勤务岗位01 | C29: 赫章县公安局 | D29: 01 | E29: =VLOOKUP(F29,'[1]Worksheet (2)'!$A$1:$C$1340,2,FALSE) -> 马严杰 | F29: 2025010113 | G29: 86.69 | H29: 57.79 | I29: 23.12 | J29: 67.53 | K29: 40.52 | L29: 63.64 | M29: 否
A30: 28 | B30: 勤务岗位01 | C30: 赫章县公安局 | D30: 01 | E30: =VLOOKUP(F30,'[1]Worksheet (2)'!$A$1:$C$1340,2,FALSE) -> 胡思涛 | F30: 2025010109 | G30: 77.76 | H30: 51.84 | I30: 20.74 | J30: 70.77 | K30: 42.46 | L30: 63.20 | M30: 否
A31: 29 | B31: 勤务岗位01 | C31: 赫章县公安局 | D31: 01 | E31: =VLOOKUP(F31,'[1]Worksheet (2)'!$A$1:$C$1340,2,FALSE) -> 龙峰 | F31: 2025010211 | G31: 72.27 | H31: 48.18 | I31: 19.27 | J31: 66.53 | K31: 39.92 | L31: 59.19 | M31: 否
A32: 30 | B32: 勤务岗位01 | C32: 赫章县公安局 | D32: 01 | E32: =VLOOKUP(F32,'[1]Worksheet (2)'!$A$1:$C$1340,2,FALSE) -> 陈鸿 | F32: 2025010202 | G32: 94.02 | H32: 62.68 | I32: 25.07 | J32: 缺考 | K32: 缺考 | L32: 25.07 | M32: 否
A33: 31 | B33: 勤务岗位02 | C33: 赫章县公安局 | D33: 02 | E33: =VLOOKUP(F33,'[1]Worksheet (2)'!$A$1:$C$1340,2,FALSE) -> 吕玲宇 | F33: 2025020515 | G33: 113.17 | H33: 75.45 | I33: 30.18 | J33: 78.13 | K33: =ROUND(J33*0.6,2) -> 46.88 | L33: =ROUND(I33+K33,2) -> 77.06 | M33: 是
A34: 32 | B34: 勤务岗位02 | C34: 赫章县公安局 | D34: 02 | E34: =VLOOKUP(F34,'[1]Worksheet (2)'!$A$1:$C$1340,2,FALSE) -> 陈玮 | F34: 2025020523 | G34: 112.25 | H34: 74.83 | I34: 29.93 | J34: 74.83 | K34: 44.90 | L34: 74.83 | M34: 是
A35: 33 | B35: 勤务岗位02 | C35: 赫章县公安局 | D35: 02 | E35: =VLOOKUP(F35,'[1]Worksheet (2)'!$A$1:$C$1340,2,FALSE) -> 钱伦 | F35: 2025020517 | G35: 118.66 | H35: 79.11 | I35: 31.64 | J35: 69.67 | K35: 41.80 | L35: 73.44 | M35: 是
A36: 34 | B36: 勤务岗位02 | C36: 赫章县公安局 | D36: 02 | E36: =VLOOKUP(F36,'[1]Worksheet (2)'!$A$1:$C$1340,2,FALSE) -> 李东 | F36: 2025020405 | G36: 112.04 | H36: 74.69 | I36: 29.88 | J36: 69.40 | K36: 41.64 | L36: 71.52 | M36: 是
A37: 35 | B37: 勤务岗位02 | C37: 赫章县公安局 | D37: 02 | E37: =VLOOKUP(F37,'[1]Worksheet (2)'!$A$1:$C$1340,2,FALSE) -> 孙成城 | F37: 2025020518 | G37: 101.98 | H37: 67.99 | I37: 27.20 | J37: 73.87 | K37: 44.32 | L37: 71.52 | M37: 是
A38: 36 | B38: 勤务岗位02 | C38: 赫章县公安局 | D38: 02 | E38: =VLOOKUP(F38,'[1]Worksheet (2)'!$A$1:$C$1340,2,FALSE) -> 陈佳伦 | F38: 2025020428 | G38: 95.36 | H38: 63.57 | I38: 25.43 | J38: 76.13 | K38: 45.68 | L38: 71.11 | M38: 是
A39: 37 | B39: 勤务岗位02 | C39: 赫章县公安局 | D39: 02 | E39: =VLOOKUP(F39,'[1]Worksheet (2)'!$A$1:$C$1340,2,FALSE) -> 龙胜 | F39: 2025020406 | G39: 98.17 | H39: 65.45 | I39: 26.18 | J39: 74.70 | K39: 44.82 | L39: 71.00 | M39: 是
A40: 38 | B40: 勤务岗位02 | C40: 赫章县公安局 | D40: 02 | E40: =VLOOKUP(F40,'[1]Worksheet (2)'!$A$1:$C$1340,2,FALSE) -> 赵胜 | F40: 2025020402 | G40: 108.10 | H40: 72.07 | I40: 28.83 | J40: 70.13 | K40: 42.08 | L40: 70.91 | M40: 是
A41: 39 | B41: 勤务岗位02 | C41: 赫章县公安局 | D41: 02 | E41: =VLOOKUP(F41,'[1]Worksheet (2)'!$A$1:$C$1340,2,FALSE) -> 韩德豪 | F41: 2025020529 | G41: 98.25 | H41: 65.50 | I41: 26.20 | J41: 73.43 | K41: 44.06 | L41: 70.26 | M41: 是
A42: 40 | B42: 勤务岗位02 | C42: 赫章县公安局 | D42: 02 | E42: =VLOOKUP(F42,'[1]Worksheet (2)'!$A$1:$C$1340,2,FALSE) -> 闵聪 | F42: 2025020503 | G42: 100.01 | H42: 66.67 | I42: 26.67 | J42: 71.37 | K42: 42.82 | L42: 69.49 | M42: 是
A43: 41 | B43: 勤务岗位02 | C43: 赫章县公安局 | D43: 02 | E43: =VLOOKUP(F43,'[1]Worksheet (2)'!$A$1:$C$1340,2,FALSE) -> 林磊 | F43: 2025020521 | G43: 100.85 | H43: 67.23 | I43: 26.89 | J43: 69.63 | K43: 41.78 | L43: 68.67 | M43: 是
A44: 42 | B44: 勤务岗位02 | C44: 赫章县公安局 | D44: 02 | E44: =VLOOKUP(F44,'[1]Worksheet (2)'!$A$1:$C$1340,2,FALSE) -> 杨世垚 | F44: 2025020328 | G44: 85.85 | H44: 57.23 | I44: 22.89 | J44: 75.43 | K44: 45.26 | L44: 68.15 | M44: 是
A45: 43 | B45: 勤务岗位02 | C45: 赫章县公安局 | D45: 02 | E45: =VLOOKUP(F45,'[1]Worksheet (2)'!$A$1:$C$1340,2,FALSE) -> 陈龙 | F45: 2025020401 | G45: 85.85 | H45: 57.23 | I45: 22.89 | J45: 74.88 | K45: 44.93 | L45: 67.82 | M45: 是
A46: 44 | B46: 勤务岗位02 | C46: 赫章县公安局 | D46: 02 | E46: =VLOOKUP(F46,'[1]Worksheet (2)'!$A$1:$C$1340,2,FALSE) -> 张学洪 | F46: 2025020522 | G46: 93.10 | H46: 62.07 | I46: 24.83 | J46: 71.03 | K46: 42.62 | L46: 67.45 | M46: 是
A47: 45 | B47: 勤务岗位02 | C47: 赫章县公安局 | D47: 02 | E47: =VLOOKUP(F47,'[1]Worksheet (2)'!$A$1:$C$1340,2,FALSE) -> 梅杰 | F47: 2025020430 | G47: 107.89 | H47: 71.93 | I47: 28.77 | J47: 64.27 | K47: 38.56 | L47: 67.33 | M47: 是
A48: 46 | B48: 勤务岗位02 | C48: 赫章县公安局 | D48: 02 | E48: =VLOOKUP(F48,'[1]Worksheet (2)'!$A$1:$C$1340,2,FALSE) -> 沈冲 | F48: 2025020512 | G48: 89.37 | H48: 59.58 | I48: 23.83 | J48: 72.33 | K48: 43.40 | L48: 67.23 | M48: 否
A49: 47 | B49: 勤务岗位02 | C49: 赫章县公安局 | D49: 02 | E49: =VLOOKUP(F49,'[1]Worksheet (2)'!$A$1:$C$1340,2,FALSE) -> 龙江 | F49: 2025020509 | G49: 90.71 | H49: 60.47 | I49: 24.19 | J49: 70.78 | K49: 42.47 | L49: 66.66 | M49: 否
A50: 48 | B50: 勤务岗位02 | C50: 赫章县公安局 | D50: 02 | E50: =VLOOKUP(F50,'[1]Worksheet (2)'!$A$1:$C$1340,2,FALSE) -> 陈信 | F50: 2025020408 | G50: 85.93 | H50: 57.29 | I50: 22.92 | J50: 72.67 | K50: 43.60 | L50: 66.52 | M50: 否
A51: 49 | B51: 勤务岗位02 | C51: 赫章县公安局 | D51: 02 | E51: =VLOOKUP(F51,'[1]Worksheet (2)'!$A$1:$C$1340,2,FALSE) -> 徐钦 | F51: 2025020404 | G51: 84.09 | H51: 56.06 | I51: 22.42 | J51: 72.50 | K51: 43.50 | L51: 65.92 | M51: 否
A52: 50 | B52: 勤务岗位02 | C52: 赫章县公安局 | D52: 02 | E52: =VLOOKUP(F52,'[1]Worksheet (2)'!$A$1:$C$1340,2,FALSE) -> 姜召 | F52: 2025020514 | G52: 88.03 | H52: 58.69 | I52: 23.48 | J52: 69.37 | K52: 41.62 | L52: 65.10 | M52: 否
A53: 51 | B53: 勤务岗位02 | C53: 赫章县公安局 | D53: 02 | E53: =VLOOKUP(F53,'[1]Worksheet (2)'!$A$1:$C$1340,2,FALSE) -> 许思健 | F53: 2025020327 | G53: 92.55 | H53: 61.70 | I53: 24.68 | J53: 65.70 | K53: 39.42 | L53: 64.10 | M53: 否
A54: 52 | B54: 勤务岗位02 | C54: 赫章县公安局 | D54: 02 | E54: =VLOOKUP(F54,'[1]Worksheet (2)'!$A$1:$C$1340,2,FALSE) -> 刘航 | F54: 2025020602 | G54: 93.31 | H54: 62.21 | I54: 24.88 | J54: 63.93 | K54: 38.36 | L54: 63.24 | M54: 否
A55: 53 | B55: 勤务岗位02 | C55: 赫章县公安局 | D55: 02 | E55: =VLOOKUP(F55,'[1]Worksheet (2)'!$A$1:$C$1340,2,FALSE) -> 雷濡键 | F55: 2025020528 | G55: 78.18 | H55: 52.12 | I55: 20.85 | J55: 69.37 | K55: 41.62 | L55: 62.47 | M55: 否
A56: 54 | B56: 勤务岗位02 | C56: 赫章县公安局 | D56: 02 | E56: =VLOOKUP(F56,'[1]Worksheet (2)'!$A$1:$C$1340,2,FALSE) -> 王宇 | F56: 2025020423 | G56: 92.13 | H56: 61.42 | I56: 24.57 | J56: 61.87 | K56: 37.12 | L56: 61.69 | M56: 否
A57: 55 | B57: 勤务岗位02 | C57: 赫章县公安局 | D57: 02 | E57: =VLOOKUP(F57,'[1]Worksheet (2)'!$A$1:$C$1340,2,FALSE) -> 李远 | F57: 2025020516 | G57: 77.63 | H57: 51.75 | I57: 20.70 | J57: 68.13 | K57: 40.88 | L57: 61.58 | M57: 否
A58: 56 | B58: 勤务岗位02 | C58: 赫章县公安局 | D58: 02 | E58: =VLOOKUP(F58,'[1]Worksheet (2)'!$A$1:$C$1340,2,FALSE) -> 朱鹏飞 | F58: 2025020510 | G58: 85.72 | H58: 57.15 | I58: 22.86 | J58: 62.67 | K58: 37.60 | L58: 60.46 | M58: 否
A59: 57 | B59: 勤务岗位03 | C59: 赫章县公安局 | D59: 03 | E59: =VLOOKUP(F59,'[1]Worksheet (2)'!$A$1:$C$1340,2,FALSE) -> 李志省 | F59: 2025030712 | G59: 114.30 | H59: 76.20 | I59: 30.48 | J59: 80.93 | K59: 48.56 | L59: 79.04 | M59: 是
A60: 58 | B60: 勤务岗位03 | C60: 赫章县公安局 | D60: 03 | E60: =VLOOKUP(F60,'[1]Worksheet (2)'!$A$1:$C$1340,2,FALSE) -> 胡茂 | F60: 2025030801 | G60: 122.31 | H60: 81.54 | I60: 32.62 | J60: 75.53 | K60: 45.32 | L60: 77.94 | M60: 是
A61: 59 | B61: 勤务岗位03 | C61: 赫章县公安局 | D61: 03 | E61: =VLOOKUP(F61,'[1]Worksheet (2)'!$A$1:$C$1340,2,FALSE) -> 邓道鹏 | F61: 2025030818 | G61: 119.37 | H61: 79.58 | I61: 31.83 | J61: 76.53 | K61: 45.92 | L61: 77.75 | M61: 是
A62: 60 | B62: 勤务岗位03 | C62: 赫章县公安局 | D62: 03 | E62: =VLOOKUP(F62,'[1]Worksheet (2)'!$A$1:$C$1340,2,FALSE) -> 龚伟 | F62: 2025030807 | G62: 107.60 | H62: 71.73 | I62: 28.69 | J62: 77.30 | K62: 46.38 | L62: 75.07 | M62: 是
A63: 61 | B63: 勤务岗位03 | C63: 赫章县公安局 | D63: 03 | E63: =VLOOKUP(F63,'[1]Worksheet (2)'!$A$1:$C$1340,2,FALSE) -> 龙靖鑫 | F63: 2025030720 | G63: 122.76 | H63: 81.84 | I63: 32.74 | J63: 65.33 | K63: 39.20 | L63: 71.94 | M63: 是
A64: 62 | B64: 勤务岗位03 | C64: 赫章县公安局 | D64: 03 | E64: =VLOOKUP(F64,'[1]Worksheet (2)'!$A$1:$C$1340,2,FALSE) -> 陈滔 | F64: 2025030622 | G64: 103.24 | H64: 68.83 | I64: 27.53 | J64: 72.83 | K64: 43.70 | L64: 71.23 | M64: 是
A65: 63 | B65: 勤务岗位03 | C65: 赫章县公安局 | D65: 03 | E65: =VLOOKUP(F65,'[1]Worksheet (2)'!$A$1:$C$1340,2,FALSE) -> 王瞳 | F65: 2025030609 | G65: 104.37 | H65: 69.58 | I65: 27.83 | J65: 71.40 | K65: 42.84 | L65: 70.67 | M65: 是
A66: 64 | B66: 勤务岗位03 | C66: 赫章县公安局 | D66: 03 | E66: =VLOOKUP(F66,'[1]Worksheet (2)'!$A$1:$C$1340,2,FALSE) -> 郑胜 | F66: 2025030607 | G66: 105.34 | H66: 70.23 | I66: 28.09 | J66: 70.53 | K66: 42.32 | L66: 70.41 | M66: 是
A67: 65 | B67: 勤务岗位03 | C67: 赫章县公安局 | D67: 03 | E67: =VLOOKUP(F67,'[1]Worksheet (2)'!$A$1:$C$1340,2,FALSE) -> 邓阳 | F67: 2025030727 | G67: 92.76 | H67: =ROUND(G67/1.5,2) -> 61.84 | I67: =ROUND(H67*0.4,2) -> 24.74 | J67: 73.90 | K67: 44.34 | L67: 69.08 | M67: 是
A68: 66 | B68: 勤务岗位03 | C68: 赫章县公安局 | D68: 03 | E68: =VLOOKUP(F68,'[1]Worksheet (2)'!$A$1:$C$1340,2,FALSE) -> 杨梦 | F68: 2025030711 | G68: 94.44 | H68: 62.96 | I68: 25.18 | J68: 72.33 | K68: 43.40 | L68: 68.58 | M68: 是
A69: 67 | B69: 勤务岗位03 | C69: 赫章县公安局 | D69: 03 | E69: =VLOOKUP(F69,'[1]Worksheet (2)'!$A$1:$C$1340,2,FALSE) -> 王世纪 | F69: 2025030702 | G69: 91.84 | H69: 61.23 | I69: 24.49 | J69: 71.60 | K69: 42.96 | L69: 67.45 | M69: 是
A70: 68 | B70: 勤务岗位03 | C70: 赫章县公安局 | D70: 03 | E70: =VLOOKUP(F70,'[1]Worksheet (2)'!$A$1:$C$1340,2,FALSE) -> 陈立山 | F70: 2025030608 | G70: 96.70 | H70: 64.47 | I70: 25.79 | J70: 68.70 | K70: 41.22 | L70: 67.01 | M70: 是
A71: 69 | B71: 勤务岗位03 | C71: 赫章县公安局 | D71: 03 | E71: =VLOOKUP(F71,'[1]Worksheet (2)'!$A$1:$C$1340,2,FALSE) -> 汪皓 | F71: 2025030721 | G71: 91.84 | H71: 61.23 | I71: 24.49 | J71: 70.73 | K71: 42.44 | L71: 66.93 | M71: 是
A72: 70 | B72: 勤务岗位03 | C72: 赫章县公安局 | D72: 03 | E72: =VLOOKUP(F72,'[1]Worksheet (2)'!$A$1:$C$1340,2,FALSE) -> 文剑龙 | F72: 2025030614 | G72: 83.33 | H72: 55.55 | I72: 22.22 | J72: 73.73 | K72: 44.24 | L72: 66.46 | M72: 是
A73: 71 | B73: 勤务岗位03 | C73: 赫章县公安局 | D73: 03 | E73: =VLOOKUP(F73,'[1]Worksheet (2)'!$A$1:$C$1340,2,FALSE) -> 夏超 | F73: 2025030628 | G73: 89.79 | H73: 59.86 | I73: 23.94 | J73: 69.07 | K73: 41.44 | L73: 65.38 | M73: 是
A74: 72 | B74: 勤务岗位03 | C74: 赫章县公安局 | D74: 03 | E74: =VLOOKUP(F74,'[1]Worksheet (2)'!$A$1:$C$1340,2,FALSE) -> 谢宗政 | F74: 2025030617 | G74: 87.35 | H74: 58.23 | I74: 23.29 | J74: 68.20 | K74: 40.92 | L74: 64.21 | M74: 否
A75: 73 | B75: 勤务岗位03 | C75: 赫章县公安局 | D75: 03 | E75: =VLOOKUP(F75,'[1]Worksheet (2)'!$A$1:$C$1340,2,FALSE) -> 周雷 | F75: 2025030810 | G75: 84.88 | H75: 56.59 | I75: 22.64 | J75: 69.10 | K75: 41.46 | L75: 64.10 | M75: 否
A76: 74 | B76: 勤务岗位03 | C76: 赫章县公安局 | D76: 03 | E76: =VLOOKUP(F76,'[1]Worksheet (2)'!$A$1:$C$1340,2,FALSE) -> 顾康龙 | F76: 2025030806 | G76: 89.87 | H76: 59.91 | I76: 23.96 | J76: 65.43 | K76: 39.26 | L76: 63.22 | M76: 否
A77: 75 | B77: 勤务岗位03 | C77: 赫章县公安局 | D77: 03 | E77: =VLOOKUP(F77,'[1]Worksheet (2)'!$A$1:$C$1340,2,FALSE) -> 刘国泽 | F77: 2025030804 | G77: 94.23 | H77: 62.82 | I77: 25.13 | J77: 63.43 | K77: 38.06 | L77: 63.19 | M77: 否
A78: 76 | B78: 勤务岗位03 | C78: 赫章县公安局 | D78: 03 | E78: =VLOOKUP(F78,'[1]Worksheet (2)'!$A$1:$C$1340,2,FALSE) -> 李玮 | F78: 2025030625 | G78: 78.39 | H78: 52.26 | I78: 20.90 | J78: 69.70 | K78: 41.82 | L78: 62.72 | M78: 否
A79: 77 | B79: 勤务岗位03 | C79: 赫章县公安局 | D79: 03 | E79: =VLOOKUP(F79,'[1]Worksheet (2)'!$A$1:$C$1340,2,FALSE) -> 安远迅 | F79: 2025030725 | G79: 85.14 | H79: 56.76 | I79: 22.70 | J79: 66.40 | K79: 39.84 | L79: 62.54 | M79: 否
A80: 78 | B80: 勤务岗位03 | C80: 赫章县公安局 | D80: 03 | E80: =VLOOKUP(F80,'[1]Worksheet (2)'!$A$1:$C$1340,2,FALSE) -> 张健 | F80: 2025030627 | G80: 76.92 | H80: 51.28 | I80: 20.51 | J80: 63.67 | K80: 38.20 | L80: 58.71 | M80: 否
A81: 79 | B81: 勤务岗位03 | C81: 赫章县公安局 | D81: 03 | E81: =VLOOKUP(F81,'[1]Worksheet (2)'!$A$1:$C$1340,2,FALSE) -> 李晨傲 | F81: 2025030615 | G81: 82.96 | H81: 55.31 | I81: 22.12 | J81: 缺考 | K81: 缺考 | L81: 22.12 | M81: 否
A82: 80 | B82: 勤务岗位04 | C82: 赫章县公安局 | D82: 04 | E82: =VLOOKUP(F82,'[1]Worksheet (2)'!$A$1:$C$1340,2,FALSE) -> 刘祥熙 | F82: 2025041025 | G82: 112.88 | H82: 75.25 | I82: 30.10 | J82: 77.33 | K82: =ROUND(J82*0.6,2) -> 46.40 | L82: =ROUND(I82+K82,2) -> 76.50 | M82: 是
A83: 81 | B83: 勤务岗位04 | C83: 赫章县公安局 | D83: 04 | E83: =VLOOKUP(F83,'[1]Worksheet (2)'!$A$1:$C$1340,2,FALSE) -> 周海 | F83: 2025041005 | G83: 113.88 | H83: 75.92 | I83: 30.37 | J83: 75.33 | K83: 45.20 | L83: 75.57 | M83: 是
A84: 82 | B84: 勤务岗位04 | C84: 赫章县公安局 | D84: 04 | E84: =VLOOKUP(F84,'[1]Worksheet (2)'!$A$1:$C$1340,2,FALSE) -> 孙志雄 | F84: 2025041103 | G84: 125.70 | H84: 83.80 | I84: 33.52 | J84: 70.00 | K84: 42.00 | L84: 75.52 | M84: 是
A85: 83 | B85: 勤务岗位04 | C85: 赫章县公安局 | D85: 04 | E85: =VLOOKUP(F85,'[1]Worksheet (2)'!$A$1:$C$1340,2,FALSE) -> 刘显江 | F85: 2025040921 | G85: 111.41 | H85: 74.27 | I85: 29.71 | J85: 75.33 | K85: 45.20 | L85: 74.91 | M85: 是
A86: 84 | B86: 勤务岗位04 | C86: 赫章县公安局 | D86: 04 | E86: =VLOOKUP(F86,'[1]Worksheet (2)'!$A$1:$C$1340,2,FALSE) -> 罗涛 | F86: 2025041013 | G86: 116.90 | H86: 77.93 | I86: 31.17 | J86: 71.33 | K86: 42.80 | L86: 73.97 | M86: 是
A87: 85 | B87: 勤务岗位04 | C87: 赫章县公安局 | D87: 04 | E87: =VLOOKUP(F87,'[1]Worksheet (2)'!$A$1:$C$1340,2,FALSE) -> 徐顺然 | F87: 2025040917 | G87: 100.14 | H87: 66.76 | I87: 26.70 | J87: 77.67 | K87: 46.60 | L87: 73.30 | M87: 是
A88: 86 | B88: 勤务岗位04 | C88: 赫章县公安局 | D88: 04 | E88: =VLOOKUP(F88,'[1]Worksheet (2)'!$A$1:$C$1340,2,FALSE) -> 刘航 | F88: 2025041029 | G88: 84.59 | H88: 56.39 | I88: 22.56 | J88: 84.00 | K88: 50.40 | L88: 72.96 | M88: 是
A89: 87 | B89: 勤务岗位04 | C89: 赫章县公安局 | D89: 04 | E89: =VLOOKUP(F89,'[1]Worksheet (2)'!$A$1:$C$1340,2,FALSE) -> 林威 | F89: 2025041008 | G89: 105.92 | H89: 70.61 | I89: 28.24 | J89: 74.33 | K89: 44.60 | L89: 72.84 | M89: 是
A90: 88 | B90: 勤务岗位04 | C90: 赫章县公安局 | D90: 04 | E90: =VLOOKUP(F90,'[1]Worksheet (2)'!$A$1:$C$1340,2,FALSE) -> 龙云卿 | F90: 2025040822 | G90: 86.98 | H90: 57.99 | I90: 23.20 | J90: 82.00 | K90: 49.20 | L90: 72.40 | M90: 是
A91: 89 | B91: 勤务岗位04 | C91: 赫章县公安局 | D91: 04 | E91: =VLOOKUP(F91,'[1]Worksheet (2)'!$A$1:$C$1340,2,FALSE) -> 陈忠航 | F91: 2025041017 | G91: 91.13 | H91: 60.75 | I91: 24.30 | J91: 79.33 | K91: 47.60 | L91: 71.90 | M91: 是
A92: 90 | B92: 勤务岗位04 | C92: 赫章县公安局 | D92: 04 | E92: =VLOOKUP(F92,'[1]Worksheet (2)'!$A$1:$C$1340,2,FALSE) -> 龙俊 | F92: 2025040928 | G92: 93.31 | H92: 62.21 | I92: 24.88 | J92: 78.00 | K92: 46.80 | L92: 71.68 | M92: 是
A93: 91 | B93: 勤务岗位04 | C93: 赫章县公安局 | D93: 04 | E93: =VLOOKUP(F93,'[1]Worksheet (2)'!$A$1:$C$1340,2,FALSE) -> 尹彧天 | F93: 2025040913 | G93: 96.99 | H93: 64.66 | I93: 25.86 | J93: 76.00 | K93: 45.60 | L93: 71.46 | M93: 是
A94: 92 | B94: 勤务岗位04 | C94: 赫章县公安局 | D94: 04 | E94: =VLOOKUP(F94,'[1]Worksheet (2)'!$A$1:$C$1340,2,FALSE) -> 杨家茂 | F94: 2025040827 | G94: 93.60 | H94: 62.40 | I94: 24.96 | J94: 77.00 | K94: 46.20 | L94: 71.16 | M94: 是
A95: 93 | B95: 勤务岗位04 | C95: 赫章县公安局 | D95: 04 | E95: =VLOOKUP(F95,'[1]Worksheet (2)'!$A$1:$C$1340,2,FALSE) -> 吴頔 | F95: 2025040910 | G95: 107.31 | H95: 71.54 | I95: 28.62 | J95: 70.33 | K95: 42.20 | L95: 70.82 | M95: 是
A96: 94 | B96: 勤务岗位04 | C96: 赫章县公安局 | D96: 04 | E96: =VLOOKUP(F96,'[1]Worksheet (2)'!$A$1:$C$1340,2,FALSE) -> 黄成龙 | F96: 2025041006 | G96: 93.60 | H96: 62.40 | I96: 24.96 | J96: 76.33 | K96: 45.80 | L96: 70.76 | M96: 是
A97: 95 | B97: 勤务岗位04 | C97: 赫章县公安局 | D97: 04 | E97: =VLOOKUP(F97,'[1]Worksheet (2)'!$A$1:$C$1340,2,FALSE) -> 唐喜 | F97: 2025040920 | G97: 99.30 | H97: 66.20 | I97: 26.48 | J97: 73.67 | K97: 44.20 | L97: 70.68 | M97: 否
A98: 96 | B98: 勤务岗位04 | C98: 赫章县公安局 | D98: 04 | E98: =VLOOKUP(F98,'[1]Worksheet (2)'!$A$1:$C$1340,2,FALSE) -> 穆洪 | F98: 2025040925 | G98: 94.44 | H98: 62.96 | I98: 25.18 | J98: 75.00 | K98: 45.00 | L98: 70.18 | M98: 否
A99: 97 | B99: 勤务岗位04 | C99: 赫章县公安局 | D99: 04 | E99: =VLOOKUP(F99,'[1]Worksheet (2)'!$A$1:$C$1340,2,FALSE) -> 罗中伟 | F99: 2025040826 | G99: 88.95 | H99: 59.30 | I99: 23.72 | J99: 75.67 | K99: 45.40 | L99: 69.12 | M99: 否
A100: 98 | B100: 勤务岗位04 | C100: 赫章县公安局 | D100: 04 | E100: =VLOOKUP(F100,'[1]Worksheet (2)'!$A$1:$C$1340,2,FALSE) -> 金锐 | F100: 2025041012 | G100: 96.57 | H100: 64.38 | I100: 25.75 | J100: 70.67 | K100: 42.40 | L100: 68.15 | M100: 否
A101: 99 | B101: 勤务岗位04 | C101: 赫章县公安局 | D101: 04 | E101: =VLOOKUP(F101,'[1]Worksheet (2)'!$A$1:$C$1340,2,FALSE) -> 陈阳 | F101: 2025040828 | G101: 93.81 | H101: 62.54 | I101: 25.02 | J101: 70.00 | K101: 42.00 | L101: 67.02 | M101: 否
A102: 100 | B102: 勤务岗位04 | C102: 赫章县公安局 | D102: 04 | E102: =VLOOKUP(F102,'[1]Worksheet (2)'!$A$1:$C$1340,2,FALSE) -> 杨蓬 | F102: 2025041026 | G102: 81.99 | H102: 54.66 | I102: 21.86 | J102: 73.00 | K102: 43.80 | L102: 65.66 | M102: 否
A103: 101 | B103: 勤务岗位04 | C103: 赫章县公安局 | D103: 04 | E103: =VLOOKUP(F103,'[1]Worksheet (2)'!$A$1:$C$1340,2,FALSE) -> 李建涛 | F103: 2025041014 | G103: 83.25 | H103: 55.50 | I103: 22.20 | J103: 71.67 | K103: 43.00 | L103: 65.20 | M103: 否
A104: 102 | B104: 勤务岗位04 | C104: 赫章县公安局 | D104: 04 | E104: =VLOOKUP(F104,'[1]Worksheet (2)'!$A$1:$C$1340,2,FALSE) -> 郑杰 | F104: 2025041016 | G104: 87.98 | H104: 58.65 | I104: 23.46 | J104: 67.67 | K104: 40.60 | L104: 64.06 | M104: 否
A105: 103 | B105: 勤务岗位04 | C105: 赫章县公安局 | D105: 04 | E105: =VLOOKUP(F105,'[1]Worksheet (2)'!$A$1:$C$1340,2,FALSE) -> 邹洋 | F105: 2025040908 | G105: 91.42 | H105: 60.95 | I105: 24.38 | J105: 缺考 | K105: 缺考 | L105: 24.38 | M105: 否
A106: 104 | B106: 勤务岗位05 | C106: 赫章县公安局 | D106: 05 | E106: =VLOOKUP(F106,'[1]Worksheet (2)'!$A$1:$C$1340,2,FALSE) -> 郭帅 | F106: 2025051119 | G106: 101.56 | H106: 67.71 | I106: 27.08 | J106: 80.58 | K106: =ROUND(J106*0.6,2) -> 48.35 | L106: =ROUND(I106+K106,2) -> 75.43 | M106: 是
A107: 105 | B107: 勤务岗位05 | C107: 赫章县公安局 | D107: 05 | E107: =VLOOKUP(F107,'[1]Worksheet (2)'!$A$1:$C$1340,2,FALSE) -> 张江辉 | F107: 2025051306 | G107: 110.28 | H107: 73.52 | I107: 29.41 | J107: 75.79 | K107: 45.47 | L107: 74.88 | M107: 是
A108: 106 | B108: 勤务岗位05 | C108: 赫章县公安局 | D108: 05 | E108: =VLOOKUP(F108,'[1]Worksheet (2)'!$A$1:$C$1340,2,FALSE) -> 刘冲 | F108: 2025051308 | G108: 98.04 | H108: 65.36 | I108: 26.14 | J108: 80.64 | K108: 48.38 | L108: 74.52 | M108: 是
A109: 107 | B109: 勤务岗位05 | C109: 赫章县公安局 | D109: 05 | E109: =VLOOKUP(F109,'[1]Worksheet (2)'!$A$1:$C$1340,2,FALSE) -> 梁松瑞 | F109: 2025051215 | G109: 105.50 | H109: 70.33 | I109: 28.13 | J109: 75.26 | K109: 45.16 | L109: 73.29 | M109: 是
A110: 108 | B110: 勤务岗位05 | C110: 赫章县公安局 | D110: 05 | E110: =VLOOKUP(F110,'[1]Worksheet (2)'!$A$1:$C$1340,2,FALSE) -> 彭东东 | F110: 2025051226 | G110: 95.86 | H110: 63.91 | I110: 25.56 | J110: 79.13 | K110: 47.48 | L110: 73.04 | M110: 是
A111: 109 | B111: 勤务岗位05 | C111: 赫章县公安局 | D111: 05 | E111: =VLOOKUP(F111,'[1]Worksheet (2)'!$A$1:$C$1340,2,FALSE) -> 陈禾 | F111: 2025051117 | G111: 108.02 | H111: 72.01 | I111: 28.80 | J111: 73.01 | K111: 43.81 | L111: 72.61 | M111: 是
A112: 110 | B112: 勤务岗位05 | C112: 赫章县公安局 | D112: 05 | E112: =VLOOKUP(F112,'[1]Worksheet (2)'!$A$1:$C$1340,2,FALSE) -> 吴宏志 | F112: 2025051315 | G112: 93.39 | H112: 62.26 | I112: 24.90 | J112: 78.93 | K112: 47.36 | L112: 72.26 | M112: 是
A113: 111 | B113: 勤务岗位05 | C113: 赫章县公安局 | D113: 05 | E113: =VLOOKUP(F113,'[1]Worksheet (2)'!$A$1:$C$1340,2,FALSE) -> 陈林方 | F113: 2025051118 | G113: 88.95 | H113: 59.30 | I113: 23.72 | J113: 80.89 | K113: 48.53 | L113: 72.25 | M113: 是
A114: 112 | B114: 勤务岗位05 | C114: 赫章县公安局 | D114: 05 | E114: =VLOOKUP(F114,'[1]Worksheet (2)'!$A$1:$C$1340,2,FALSE) -> 范兴 | F114: 2025051228 | G114: 112.12 | H114: 74.75 | I114: 29.90 | J114: 69.46 | K114: 41.68 | L114: 71.58 | M114: 是
A115: 113 | B115: 勤务岗位05 | C115: 赫章县公安局 | D115: 05 | E115: =VLOOKUP(F115,'[1]Worksheet (2)'!$A$1:$C$1340,2,FALSE) -> 汪平 | F115: 2025051224 | G115: 100.77 | H115: 67.18 | I115: 26.87 | J115: 74.06 | K115: 44.44 | L115: 71.31 | M115: 是
A116: 114 | B116: 勤务岗位05 | C116: 赫章县公安局 | D116: 05 | E116: =VLOOKUP(F116,'[1]Worksheet (2)'!$A$1:$C$1340,2,FALSE) -> 徐稳 | F116: 2025051201 | G116: 88.74 | H116: 59.16 | I116: 23.66 | J116: 79.20 | K116: 47.52 | L116: 71.18 | M116: 是
A117: 115 | B117: 勤务岗位05 | C117: 赫章县公安局 | D117: 05 | E117: =VLOOKUP(F117,'[1]Worksheet (2)'!$A$1:$C$1340,2,FALSE) -> 阮若伦 | F117: 2025051114 | G117: 76.92 | H117: 51.28 | I117: 20.51 | J117: 83.23 | K117: 49.94 | L117: 70.45 | M117: 是
A118: 116 | B118: 勤务岗位05 | C118: 赫章县公安局 | D118: 05 | E118: =VLOOKUP(F118,'[1]Worksheet (2)'!$A$1:$C$1340,2,FALSE) -> 郎讯 | F118: 2025051216 | G118: 86.90 | H118: 57.93 | I118: 23.17 | J118: 78.27 | K118: 46.96 | L118: 70.13 | M118: 是
A119: 117 | B119: 勤务岗位05 | C119: 赫章县公安局 | D119: 05 | E119: =VLOOKUP(F119,'[1]Worksheet (2)'!$A$1:$C$1340,2,FALSE) -> 李湘羽 | F119: 2025051116 | G119: 89.45 | H119: 59.63 | I119: 23.85 | J119: 76.94 | K119: 46.16 | L119: 70.01 | M119: 是
A120: 118 | B120: 勤务岗位05 | C120: 赫章县公安局 | D120: 05 | E120: =VLOOKUP(F120,'[1]Worksheet (2)'!$A$1:$C$1340,2,FALSE) -> 唐杰 | F120: 2025051318 | G120: 100.85 | H120: 67.23 | I120: 26.89 | J120: 70.82 | K120: 42.49 | L120: 69.38 | M120: 是
A121: 119 | B121: 勤务岗位05 | C121: 赫章县公安局 | D121: 05 | E121: =VLOOKUP(F121,'[1]Worksheet (2)'!$A$1:$C$1340,2,FALSE) -> 杨浩宇 | F121: 2025051220 | G121: 85.35 | H121: 56.90 | I121: 22.76 | J121: 74.25 | K121: 44.55 | L121: 67.31 | M121: 否
A122: 120 | B122: 勤务岗位05 | C122: 赫章县公安局 | D122: 05 | E122: =VLOOKUP(F122,'[1]Worksheet (2)'!$A$1:$C$1340,2,FALSE) -> 彭福骥 | F122: 2025051212 | G122: 88.32 | H122: 58.88 | I122: 23.55 | J122: 69.08 | K122: 41.45 | L122: 65.00 | M122: 否
A123: 121 | B123: 勤务岗位05 | C123: 赫章县公安局 | D123: 05 | E123: =VLOOKUP(F123,'[1]Worksheet (2)'!$A$1:$C$1340,2,FALSE) -> 陆志杰 | F123: 2025051111 | G123: 85.72 | H123: 57.15 | I123: 22.86 | J123: 69.91 | K123: 41.95 | L123: 64.81 | M123: 否
A124: 122 | B124: 勤务岗位05 | C124: 赫章县公安局 | D124: 05 | E124: =VLOOKUP(F124,'[1]Worksheet (2)'!$A$1:$C$1340,2,FALSE) -> 蒋威 | F124: 2025051106 | G124: 83.04 | H124: 55.36 | I124: 22.14 | J124: 70.56 | K124: 42.34 | L124: 64.48 | M124: 否
A125: 123 | B125: 勤务岗位05 | C125: 赫章县公安局 | D125: 05 | E125: =VLOOKUP(F125,'[1]Worksheet (2)'!$A$1:$C$1340,2,FALSE) -> 杨伟 | F125: 2025051115 | G125: 87.69 | H125: 58.46 | I125: 23.38 | J125: 65.55 | K125: 39.33 | L125: 62.71 | M125: 否
A126: 124 | B126: 勤务岗位06 | C126: 赫章县公安局 | D126: 06 | E126: =VLOOKUP(F126,'[1]Worksheet (2)'!$A$1:$C$1340,2,FALSE) -> 王阳 | F126: 2025061422 | G126: 120.84 | H126: 80.56 | I126: 32.22 | J126: 80.18 | K126: 48.11 | L126: 80.33 | M126: 是
A127: 125 | B127: 勤务岗位06 | C127: 赫章县公安局 | D127: 06 | E127: =VLOOKUP(F127,'[1]Worksheet (2)'!$A$1:$C$1340,2,FALSE) -> 周杰 | F127: 2025061406 | G127: 106.55 | H127: 71.03 | I127: 28.41 | J127: 82.29 | K127: 49.37 | L127: 77.78 | M127: 是
A128: 126 | B128: 勤务岗位06 | C128: 赫章县公安局 | D128: 06 | E128: =VLOOKUP(F128,'[1]Worksheet (2)'!$A$1:$C$1340,2,FALSE) -> 杨锦贵 | F128: 2025061523 | G128: 110.15 | H128: 73.43 | I128: 29.37 | J128: 78.07 | K128: 46.84 | L128: 76.21 | M128: 是
A129: 127 | B129: 勤务岗位06 | C129: 赫章县公安局 | D129: 06 | E129: =VLOOKUP(F129,'[1]Worksheet (2)'!$A$1:$C$1340,2,FALSE) -> 左德海 | F129: 2025061528 | G129: 110.78 | H129: 73.85 | I129: 29.54 | J129: 75.69 | K129: 45.41 | L129: 74.95 | M129: 是
A130: 128 | B130: 勤务岗位06 | C130: 赫章县公安局 | D130: 06 | E130: =VLOOKUP(F130,'[1]Worksheet (2)'!$A$1:$C$1340,2,FALSE) -> 康德顺 | F130: 2025061508 | G130: 99.38 | H130: 66.25 | I130: 26.50 | J130: 79.39 | K130: 47.63 | L130: 74.13 | M130: 是
A131: 129 | B131: 勤务岗位06 | C131: 赫章县公安局 | D131: 06 | E131: =VLOOKUP(F131,'[1]Worksheet (2)'!$A$1:$C$1340,2,FALSE) -> 苏宇 | F131: 2025061423 | G131: 102.19 | H131: =ROUND(G131/1.5,2) -> 68.13 | I131: =ROUND(H131*0.4,2) -> 27.25 | J131: 77.12 | K131: 46.27 | L131: 73.52 | M131: 是
A132: 130 | B132: 勤务岗位06 | C132: 赫章县公安局 | D132: 06 | E132: =VLOOKUP(F132,'[1]Worksheet (2)'!$A$1:$C$1340,2,FALSE) -> 张佳俊 | F132: 2025061428 | G132: 103.74 | H132: 69.16 | I132: 27.66 | J132: 75.28 | K132: 45.17 | L132: 72.83 | M132: 是
A133: 131 | B133: 勤务岗位06 | C133: 赫章县公安局 | D133: 06 | E133: =VLOOKUP(F133,'[1]Worksheet (2)'!$A$1:$C$1340,2,FALSE) -> 赵庆红 | F133: 2025061606 | G133: 103.95 | H133: 69.30 | I133: 27.72 | J133: 74.25 | K133: 44.55 | L133: 72.27 | M133: 是
A134: 132 | B134: 勤务岗位06 | C134: 赫章县公安局 | D134: 06 | E134: =VLOOKUP(F134,'[1]Worksheet (2)'!$A$1:$C$1340,2,FALSE) -> 蒋杰 | F134: 2025061407 | G134: 114.09 | H134: 76.06 | I134: 30.42 | J134: 69.66 | K134: 41.80 | L134: 72.22 | M134: 是
A135: 133 | B135: 勤务岗位06 | C135: 赫章县公安局 | D135: 06 | E135: =VLOOKUP(F135,'[1]Worksheet (2)'!$A$1:$C$1340,2,FALSE) -> 王训 | F135: 2025061426 | G135: 94.31 | H135: 62.87 | I135: 25.15 | J135: 77.50 | K135: 46.50 | L135: 71.65 | M135: 是
A136: 134 | B136: 勤务岗位06 | C136: 赫章县公安局 | D136: 06 | E136: =VLOOKUP(F136,'[1]Worksheet (2)'!$A$1:$C$1340,2,FALSE) -> 吴道贤 | F136: 2025061518 | G136: 100.64 | H136: 67.09 | I136: 26.84 | J136: 74.51 | K136: 44.71 | L136: 71.55 | M136: 是
A137: 135 | B137: 勤务岗位06 | C137: 赫章县公安局 | D137: 06 | E137: =VLOOKUP(F137,'[1]Worksheet (2)'!$A$1:$C$1340,2,FALSE) -> 柯夏 | F137: 2025061412 | G137: 103.53 | H137: 69.02 | I137: 27.61 | J137: 72.12 | K137: 43.27 | L137: 70.88 | M137: 是
A138: 136 | B138: 勤务岗位06 | C138: 赫章县公安局 | D138: 06 | E138: =VLOOKUP(F138,'[1]Worksheet (2)'!$A$1:$C$1340,2,FALSE) -> 孙鹏 | F138: 2025061611 | G138: 101.27 | H138: 67.51 | I138: 27.00 | J138: 72.10 | K138: 43.26 | L138: 70.26 | M138: 是
A139: 137 | B139: 勤务岗位06 | C139: 赫章县公安局 | D139: 06 | E139: =VLOOKUP(F139,'[1]Worksheet (2)'!$A$1:$C$1340,2,FALSE) -> 叶山山 | F139: 2025061516 | G139: 92.76 | H139: 61.84 | I139: 24.74 | J139: 74.74 | K139: 44.84 | L139: 69.58 | M139: 是
A140: 138 | B140: 勤务岗位06 | C140: 赫章县公安局 | D140: 06 | E140: =VLOOKUP(F140,'[1]Worksheet (2)'!$A$1:$C$1340,2,FALSE) -> 赵李伟 | F140: 2025061327 | G140: 103.45 | H140: 68.97 | I140: 27.59 | J140: 69.02 | K140: 41.41 | L140: 69.00 | M140: 是
A141: 139 | B141: 勤务岗位06 | C141: 赫章县公安局 | D141: 06 | E141: =VLOOKUP(F141,'[1]Worksheet (2)'!$A$1:$C$1340,2,FALSE) -> 丁鸿伟 | F141: 2025061524 | G141: 87.53 | H141: 58.35 | I141: 23.34 | J141: 72.49 | K141: 43.49 | L141: 66.83 | M141: 否
A142: 140 | B142: 勤务岗位06 | C142: 赫章县公安局 | D142: 06 | E142: =VLOOKUP(F142,'[1]Worksheet (2)'!$A$1:$C$1340,2,FALSE) -> 李明 | F142: 2025061325 | G142: 81.70 | H142: 54.47 | I142: 21.79 | J142: 73.05 | K142: 43.83 | L142: 65.62 | M142: 否
A143: 141 | B143: 勤务岗位06 | C143: 赫章县公安局 | D143: 06 | E143: =VLOOKUP(F143,'[1]Worksheet (2)'!$A$1:$C$1340,2,FALSE) -> 陈松涛 | F143: 2025061414 | G143: 89.45 | H143: 59.63 | I143: 23.85 | J143: 69.00 | K143: 41.40 | L143: 65.25 | M143: 否
A144: 142 | B144: 勤务岗位06 | C144: 赫章县公安局 | D144: 06 | E144: =VLOOKUP(F144,'[1]Worksheet (2)'!$A$1:$C$1340,2,FALSE) -> 朱龙 | F144: 2025061603 | G144: 90.37 | H144: 60.25 | I144: 24.10 | J144: 64.21 | K144: 38.53 | L144: 62.63 | M144: 否
A145: 143 | B145: 勤务岗位06 | C145: 赫章县公安局 | D145: 06 | E145: =VLOOKUP(F145,'[1]Worksheet (2)'!$A$1:$C$1340,2,FALSE) -> 陈希 | F145: 2025061522 | G145: 74.24 | H145: 49.49 | I145: 19.80 | J145: 64.87 | K145: 38.92 | L145: 58.72 | M145: 否
A146: 144 | B146: 勤务岗位06 | C146: 赫章县公安局 | D146: 06 | E146: =VLOOKUP(F146,'[1]Worksheet (2)'!$A$1:$C$1340,2,FALSE) -> 郭明义 | F146: 2025061602 | G146: 80.23 | H146: 53.49 | I146: 21.40 | J146: 缺考 | K146: 缺考 | L146: 21.39 | M146: 否
A147: 145 | B147: 勤务岗位07 | C147: 赫章县公安局 | D147: 07 | E147: =VLOOKUP(F147,'[1]Worksheet (2)'!$A$1:$C$1340,2,FALSE) -> 李旺 | F147: 2025071805 | G147: 115.35 | H147: 76.90 | I147: 30.76 | J147: 84.49 | K147: =ROUND(J147*0.6,2) -> 50.69 | L147: =ROUND(I147+K147,2) -> 81.45 | M147: 是
A148: 146 | B148: 勤务岗位07 | C148: 赫章县公安局 | D148: 07 | E148: =VLOOKUP(F148,'[1]Worksheet (2)'!$A$1:$C$1340,2,FALSE) -> 李富县 | F148: 2025071820 | G148: 114.30 | H148: 76.20 | I148: 30.48 | J148: 84.42 | K148: 50.65 | L148: 81.13 | M148: 是
A149: 147 | B149: 勤务岗位07 | C149: 赫章县公安局 | D149: 07 | E149: =VLOOKUP(F149,'[1]Worksheet (2)'!$A$1:$C$1340,2,FALSE) -> 张董朝 | F149: 2025071817 | G149: 105.08 | H149: 70.05 | I149: 28.02 | J149: 77.42 | K149: 46.45 | L149: 74.47 | M149: 是
A150: 148 | B150: 勤务岗位07 | C150: 赫章县公安局 | D150: 07 | E150: =VLOOKUP(F150,'[1]Worksheet (2)'!$A$1:$C$1340,2,FALSE) -> 黄将 | F150: 2025071808 | G150: 102.32 | H150: 68.21 | I150: 27.28 | J150: 77.97 | K150: 46.78 | L150: 74.06 | M150: 是
A151: 149 | B151: 勤务岗位07 | C151: 赫章县公安局 | D151: 07 | E151: =VLOOKUP(F151,'[1]Worksheet (2)'!$A$1:$C$1340,2,FALSE) -> 邱志杰 | F151: 2025071703 | G151: 96.07 | H151: 64.05 | I151: 25.62 | J151: 80.06 | K151: 48.04 | L151: 73.66 | M151: 是
A152: 150 | B152: 勤务岗位07 | C152: 赫章县公安局 | D152: 07 | E152: =VLOOKUP(F152,'[1]Worksheet (2)'!$A$1:$C$1340,2,FALSE) -> 陈旺 | F152: 2025071726 | G152: 100.22 | H152: 66.81 | I152: 26.72 | J152: 76.95 | K152: 46.17 | L152: 72.89 | M152: 是
A153: 151 | B153: 勤务岗位07 | C153: 赫章县公安局 | D153: 07 | E153: =VLOOKUP(F153,'[1]Worksheet (2)'!$A$1:$C$1340,2,FALSE) -> 黄永康 | F153: 2025071622 | G153: 90.63 | H153: 60.42 | I153: 24.17 | J153: 80.71 | K153: 48.43 | L153: 72.60 | M153: 是
A154: 152 | B154: 勤务岗位07 | C154: 赫章县公安局 | D154: 07 | E154: =VLOOKUP(F154,'[1]Worksheet (2)'!$A$1:$C$1340,2,FALSE) -> 徐余 | F154: 2025071803 | G154: 107.26 | H154: 71.51 | I154: 28.60 | J154: 72.61 | K154: 43.57 | L154: 72.17 | M154: 是
A155: 153 | B155: 勤务岗位07 | C155: 赫章县公安局 | D155: 07 | E155: =VLOOKUP(F155,'[1]Worksheet (2)'!$A$1:$C$1340,2,FALSE) -> 赵迪 | F155: 2025071722 | G155: 102.82 | H155: 68.55 | I155: 27.42 | J155: 73.14 | K155: 43.88 | L155: 71.30 | M155: 是
A156: 154 | B156: 勤务岗位07 | C156: 赫章县公安局 | D156: 07 | E156: =VLOOKUP(F156,'[1]Worksheet (2)'!$A$1:$C$1340,2,FALSE) -> 苟庆 | F156: 2025071716 | G156: 79.52 | H156: 53.01 | I156: 21.20 | J156: 82.00 | K156: 49.20 | L156: 70.40 | M156: 是
A157: 155 | B157: 勤务岗位07 | C157: 赫章县公安局 | D157: 07 | E157: =VLOOKUP(F157,'[1]Worksheet (2)'!$A$1:$C$1340,2,FALSE) -> 张茂乾 | F157: 2025071615 | G157: 94.15 | H157: 62.77 | I157: 25.11 | J157: 75.15 | K157: 45.09 | L157: 70.20 | M157: 是
A158: 156 | B158: 勤务岗位07 | C158: 赫章县公安局 | D158: 07 | E158: =VLOOKUP(F158,'[1]Worksheet (2)'!$A$1:$C$1340,2,FALSE) -> 朱宇航 | F158: 2025071721 | G158: 86.77 | H158: 57.85 | I158: 23.14 | J158: 77.79 | K158: 46.67 | L158: 69.81 | M158: 是
A159: 157 | B159: 勤务岗位07 | C159: 赫章县公安局 | D159: 07 | E159: =VLOOKUP(F159,'[1]Worksheet (2)'!$A$1:$C$1340,2,FALSE) -> 李远奇 | F159: 2025071616 | G159: 95.78 | H159: 63.85 | I159: 25.54 | J159: 72.43 | K159: 43.46 | L159: 69.00 | M159: 是
A160: 158 | B160: 勤务岗位07 | C160: 赫章县公安局 | D160: 07 | E160: =VLOOKUP(F160,'[1]Worksheet (2)'!$A$1:$C$1340,2,FALSE) -> 安垚 | F160: 2025071614 | G160: 96.78 | H160: 64.52 | I160: 25.81 | J160: 71.44 | K160: 42.86 | L160: 68.67 | M160: 是
A161: 159 | B161: 勤务岗位07 | C161: 赫章县公安局 | D161: 07 | E161: =VLOOKUP(F161,'[1]Worksheet (2)'!$A$1:$C$1340,2,FALSE) -> 游文广 | F161: 2025071813 | G161: 95.15 | H161: 63.43 | I161: 25.37 | J161: 72.14 | K161: 43.28 | L161: 68.65 | M161: 是
A162: 160 | B162: 勤务岗位07 | C162: 赫章县公安局 | D162: 07 | E162: =VLOOKUP(F162,'[1]Worksheet (2)'!$A$1:$C$1340,2,FALSE) -> 刘涛 | F162: 2025071822 | G162: 93.26 | H162: 62.17 | I162: 24.87 | J162: 72.96 | K162: 43.78 | L162: 68.65 | M162: 否 | N162: 根据公告要求，总成绩末位并列的，以笔试成绩高者进入下一环节。
A163: 161 | B163: 勤务岗位07 | C163: 赫章县公安局 | D163: 07 | E163: =VLOOKUP(F163,'[1]Worksheet (2)'!$A$1:$C$1340,2,FALSE) -> 陈涵 | F163: 2025071701 | G163: 84.30 | H163: 56.20 | I163: 22.48 | J163: 75.06 | K163: 45.04 | L163: 67.52 | M163: 否
A164: 162 | B164: 勤务岗位07 | C164: 赫章县公安局 | D164: 07 | E164: =VLOOKUP(F164,'[1]Worksheet (2)'!$A$1:$C$1340,2,FALSE) -> 殷杰 | F164: 2025071712 | G164: 89.66 | H164: 59.77 | I164: 23.91 | J164: 71.72 | K164: 43.03 | L164: 66.94 | M164: 否
A165: 163 | B165: 勤务岗位07 | C165: 赫章县公安局 | D165: 07 | E165: =VLOOKUP(F165,'[1]Worksheet (2)'!$A$1:$C$1340,2,FALSE) -> 徐珑珑 | F165: 2025071714 | G165: 87.69 | H165: 58.46 | I165: 23.38 | J165: 71.83 | K165: 43.10 | L165: 66.48 | M165: 否
A166: 164 | B166: 勤务岗位07 | C166: 赫章县公安局 | D166: 07 | E166: =VLOOKUP(F166,'[1]Worksheet (2)'!$A$1:$C$1340,2,FALSE) -> 陈维仕 | F166: 2025071625 | G166: 99.51 | H166: 66.34 | I166: 26.54 | J166: 66.00 | K166: 39.60 | L166: 66.14 | M166: 否
A167: 165 | B167: 勤务岗位07 | C167: 赫章县公安局 | D167: 07 | E167: =VLOOKUP(F167,'[1]Worksheet (2)'!$A$1:$C$1340,2,FALSE) -> 罗常应 | F167: 2025071630 | G167: 87.19 | H167: 58.13 | I167: 23.25 | J167: 70.85 | K167: 42.51 | L167: 65.76 | M167: 否
A168: 166 | B168: 勤务岗位07 | C168: 赫章县公安局 | D168: 07 | E168: =VLOOKUP(F168,'[1]Worksheet (2)'!$A$1:$C$1340,2,FALSE) -> 黄涛 | F168: 2025071704 | G168: 94.94 | H168: 63.29 | I168: 25.32 | J168: 64.10 | K168: 38.46 | L168: 63.78 | M168: 否
A169: 167 | B169: 勤务岗位07 | C169: 赫章县公安局 | D169: 07 | E169: =VLOOKUP(F169,'[1]Worksheet (2)'!$A$1:$C$1340,2,FALSE) -> 徐维 | F169: 2025071812 | G169: 89.87 | H169: 59.91 | I169: 23.96 | J169: 65.63 | K169: 39.38 | L169: 63.34 | M169: 否
A170: 168 | B170: 勤务岗位07 | C170: 赫章县公安局 | D170: 07 | E170: =VLOOKUP(F170,'[1]Worksheet (2)'!$A$1:$C$1340,2,FALSE) -> 余浪 | F170: 2025071619 | G170: 92.89 | H170: 61.93 | I170: 24.77 | J170: 61.67 | K170: 37.00 | L170: 61.77 | M170: 否
A171: 169 | B171: 勤务岗位07 | C171: 赫章县公安局 | D171: 07 | E171: =VLOOKUP(F171,'[1]Worksheet (2)'!$A$1:$C$1340,2,FALSE) -> 金泰山 | F171: 2025071810 | G171: 72.90 | H171: 48.60 | I171: 19.44 | J171: 68.66 | K171: 41.20 | L171: 60.64 | M171: 否
A172: 170 | B172: 勤务岗位07 | C172: 赫章县公安局 | D172: 07 | E172: =VLOOKUP(F172,'[1]Worksheet (2)'!$A$1:$C$1340,2,FALSE) -> 陈锐 | F172: 2025071621 | G172: 83.25 | H172: 55.50 | I172: 22.20 | J172: 62.18 | K172: 37.31 | L172: 59.51 | M172: 否
A173: 171 | B173: 勤务岗位07 | C173: 赫章县公安局 | D173: 07 | E173: =VLOOKUP(F173,'[1]Worksheet (2)'!$A$1:$C$1340,2,FALSE) -> 罗恒多 | F173: 2025071814 | G173: 105.37 | H173: 70.25 | I173: 28.10 | J173: 缺考 | K173: 缺考 | L173: 28.10 | M173: 否
A174: 172 | B174: 勤务岗位07 | C174: 赫章县公安局 | D174: 07 | E174: =VLOOKUP(F174,'[1]Worksheet (2)'!$A$1:$C$1340,2,FALSE) -> 岳豪 | F174: 2025071727 | G174: 85.09 | H174: 56.73 | I174: 22.69 | J174: 缺考 | K174: 缺考 | L174: 22.69 | M174: 否
A175: 173 | B175: 勤务岗位08 | C175: 赫章县公安局 | D175: 08 | E175: =VLOOKUP(F175,'[1]Worksheet (2)'!$A$1:$C$1340,2,FALSE) -> 陈昕源 | F175: 2025082024 | G175: 105.71 | H175: 70.47 | I175: 28.19 | J175: 78.00 | K175: =ROUND(J175*0.6,2) -> 46.80 | L175: =ROUND(I175+K175,2) -> 74.99 | M175: 是
A176: 174 | B176: 勤务岗位08 | C176: 赫章县公安局 | D176: 08 | E176: =VLOOKUP(F176,'[1]Worksheet (2)'!$A$1:$C$1340,2,FALSE) -> 朱虎 | F176: 2025082017 | G176: 99.93 | H176: 66.62 | I176: 26.65 | J176: 77.67 | K176: 46.60 | L176: 73.25 | M176: 是
A177: 175 | B177: 勤务岗位08 | C177: 赫章县公安局 | D177: 08 | E177: =VLOOKUP(F177,'[1]Worksheet (2)'!$A$1:$C$1340,2,FALSE) -> 罗丹 | F177: 2025082025 | G177: 100.14 | H177: 66.76 | I177: 26.70 | J177: 76.00 | K177: 45.60 | L177: 72.30 | M177: 是
A178: 176 | B178: 勤务岗位08 | C178: 赫章县公安局 | D178: 08 | E178: =VLOOKUP(F178,'[1]Worksheet (2)'!$A$1:$C$1340,2,FALSE) -> 黄智杰 | F178: 2025081903 | G178: 102.82 | H178: 68.55 | I178: 27.42 | J178: 74.33 | K178: 44.60 | L178: 72.02 | M178: 是
A179: 177 | B179: 勤务岗位08 | C179: 赫章县公安局 | D179: 08 | E179: =VLOOKUP(F179,'[1]Worksheet (2)'!$A$1:$C$1340,2,FALSE) -> 张涛 | F179: 2025082013 | G179: 96.78 | H179: 64.52 | I179: 25.81 | J179: 75.67 | K179: 45.40 | L179: 71.21 | M179: 是
A180: 178 | B180: 勤务岗位08 | C180: 赫章县公安局 | D180: 08 | E180: =VLOOKUP(F180,'[1]Worksheet (2)'!$A$1:$C$1340,2,FALSE) -> 黄仁吉 | F180: 2025081917 | G180: 104.16 | H180: 69.44 | I180: 27.78 | J180: 72.33 | K180: 43.40 | L180: 71.18 | M180: 是
A181: 179 | B181: 勤务岗位08 | C181: 赫章县公安局 | D181: 08 | E181: =VLOOKUP(F181,'[1]Worksheet (2)'!$A$1:$C$1340,2,FALSE) -> 赵龙 | F181: 2025082019 | G181: 101.06 | H181: 67.37 | I181: 26.95 | J181: 73.33 | K181: 44.00 | L181: 70.95 | M181: 是
A182: 180 | B182: 勤务岗位08 | C182: 赫章县公安局 | D182: 08 | E182: =VLOOKUP(F182,'[1]Worksheet (2)'!$A$1:$C$1340,2,FALSE) -> 李波浪 | F182: 2025081924 | G182: 85.09 | H182: 56.73 | I182: 22.69 | J182: 80.00 | K182: 48.00 | L182: 70.69 | M182: 是
A183: 181 | B183: 勤务岗位08 | C183: 赫章县公安局 | D183: 08 | E183: =VLOOKUP(F183,'[1]Worksheet (2)'!$A$1:$C$1340,2,FALSE) -> 陈林 | F183: 2025081918 | G183: 95.57 | H183: 63.71 | I183: 25.48 | J183: 74.33 | K183: 44.60 | L183: 70.08 | M183: 是
A184: 182 | B184: 勤务岗位08 | C184: 赫章县公安局 | D184: 08 | E184: =VLOOKUP(F184,'[1]Worksheet (2)'!$A$1:$C$1340,2,FALSE) -> 汤天津 | F184: 2025081906 | G184: 96.83 | H184: 64.55 | I184: 25.82 | J184: 73.00 | K184: 43.80 | L184: 69.62 | M184: 是
A185: 183 | B185: 勤务岗位08 | C185: 赫章县公安局 | D185: 08 | E185: =VLOOKUP(F185,'[1]Worksheet (2)'!$A$1:$C$1340,2,FALSE) -> 王合向 | F185: 2025081909 | G185: 97.96 | H185: 65.31 | I185: 26.12 | J185: 72.33 | K185: 43.40 | L185: 69.52 | M185: 是
A186: 184 | B186: 勤务岗位08 | C186: 赫章县公安局 | D186: 08 | E186: =VLOOKUP(F186,'[1]Worksheet (2)'!$A$1:$C$1340,2,FALSE) -> 张伟伟 | F186: 2025082104 | G186: 100.77 | H186: 67.18 | I186: 26.87 | J186: 71.00 | K186: 42.60 | L186: 69.47 | M186: 是
A187: 185 | B187: 勤务岗位08 | C187: 赫章县公安局 | D187: 08 | E187: =VLOOKUP(F187,'[1]Worksheet (2)'!$A$1:$C$1340,2,FALSE) -> 王宇勤 | F187: 2025081829 | G187: 109.65 | H187: 73.10 | I187: 29.24 | J187: 67.00 | K187: 40.20 | L187: 69.44 | M187: 是
A188: 186 | B188: 勤务岗位08 | C188: 赫章县公安局 | D188: 08 | E188: =VLOOKUP(F188,'[1]Worksheet (2)'!$A$1:$C$1340,2,FALSE) -> 徐宇东 | F188: 2025082018 | G188: 86.90 | H188: 57.93 | I188: 23.17 | J188: 76.00 | K188: 45.60 | L188: 68.77 | M188: 是
A189: 187 | B189: 勤务岗位08 | C189: 赫章县公安局 | D189: 08 | E189: =VLOOKUP(F189,'[1]Worksheet (2)'!$A$1:$C$1340,2,FALSE) -> 侯记 | F189: 2025081907 | G189: 105.08 | H189: 70.05 | I189: 28.02 | J189: 67.67 | K189: 40.60 | L189: 68.62 | M189: 是
A190: 188 | B190: 勤务岗位08 | C190: 赫章县公安局 | D190: 08 | E190: =VLOOKUP(F190,'[1]Worksheet (2)'!$A$1:$C$1340,2,FALSE) -> 文曦 | F190: 2025081928 | G190: 88.74 | H190: 59.16 | I190: 23.66 | J190: 72.33 | K190: 43.40 | L190: 67.06 | M190: 否
A191: 189 | B191: 勤务岗位08 | C191: 赫章县公安局 | D191: 08 | E191: =VLOOKUP(F191,'[1]Worksheet (2)'!$A$1:$C$1340,2,FALSE) -> 王旺 | F191: 2025082005 | G191: 89.66 | H191: 59.77 | I191: 23.91 | J191: 71.00 | K191: 42.60 | L191: 66.51 | M191: 否
A192: 190 | B192: 勤务岗位08 | C192: 赫章县公安局 | D192: 08 | E192: =VLOOKUP(F192,'[1]Worksheet (2)'!$A$1:$C$1340,2,FALSE) -> 季天雄 | F192: 2025082009 | G192: 84.59 | H192: 56.39 | I192: 22.56 | J192: 73.00 | K192: 43.80 | L192: 66.36 | M192: 否
A193: 191 | B193: 勤务岗位08 | C193: 赫章县公安局 | D193: 08 | E193: =VLOOKUP(F193,'[1]Worksheet (2)'!$A$1:$C$1340,2,FALSE) -> 文平 | F193: 2025082007 | G193: 91.76 | H193: 61.17 | I193: 24.47 | J193: 68.67 | K193: 41.20 | L193: 65.67 | M193: 否
A194: 192 | B194: 勤务岗位08 | C194: 赫章县公安局 | D194: 08 | E194: =VLOOKUP(F194,'[1]Worksheet (2)'!$A$1:$C$1340,2,FALSE) -> 文豪 | F194: 2025082027 | G194: 81.07 | H194: 54.05 | I194: 21.62 | J194: 73.00 | K194: 43.80 | L194: 65.42 | M194: 否
A195: 193 | B195: 勤务岗位08 | C195: 赫章县公安局 | D195: 08 | E195: =VLOOKUP(F195,'[1]Worksheet (2)'!$A$1:$C$1340,2,FALSE) -> 孙闵黔 | F195: 2025081919 | G195: 88.61 | H195: =ROUND(G195/1.5,2) -> 59.07 | I195: =ROUND(H195*0.4,2) -> 23.63 | J195: 68.67 | K195: 41.20 | L195: 64.83 | M195: 否
A196: 194 | B196: 勤务岗位08 | C196: 赫章县公安局 | D196: 08 | E196: =VLOOKUP(F196,'[1]Worksheet (2)'!$A$1:$C$1340,2,FALSE) -> 曾锐睿 | F196: 2025082102 | G196: 87.61 | H196: 58.41 | I196: 23.36 | J196: 64.67 | K196: 38.80 | L196: 62.16 | M196: 否
A197: 195 | B197: 勤务岗位08 | C197: 赫章县公安局 | D197: 08 | E197: =VLOOKUP(F197,'[1]Worksheet (2)'!$A$1:$C$1340,2,FALSE) -> 赵航 | F197: 2025081828 | G197: 86.14 | H197: 57.43 | I197: 22.97 | J197: 60.33 | K197: 36.20 | L197: 59.17 | M197: 否
A198: 196 | B198: 勤务岗位08 | C198: 赫章县公安局 | D198: 08 | E198: =VLOOKUP(F198,'[1]Worksheet (2)'!$A$1:$C$1340,2,FALSE) -> 燕帅 | F198: 2025081830 | G198: 73.32 | H198: 48.88 | I198: 19.55 | J198: 65.33 | K198: 39.20 | L198: 58.75 | M198: 否
A199: 197 | B199: 勤务岗位08 | C199: 赫章县公安局 | D199: 08 | E199: =VLOOKUP(F199,'[1]Worksheet (2)'!$A$1:$C$1340,2,FALSE) -> 周贤 | F199: 2025081902 | G199: 68.46 | H199: 45.64 | I199: 18.26 | J199: 66.33 | K199: 39.80 | L199: 58.06 | M199: 否
A200: 198 | B200: 勤务岗位08 | C200: 赫章县公安局 | D200: 08 | E200: =VLOOKUP(F200,'[1]Worksheet (2)'!$A$1:$C$1340,2,FALSE) -> 祝运棋 | F200: 2025081929 | G200: 62.55 | H200: 41.70 | I200: 16.68 | J200: 66.67 | K200: 40.00 | L200: 56.68 | M200: 否
... 97 more rows
